Workbook

Sheet Wykaz zapasów
K2: Wyróżnić pozycje do ponownego zamówienia? | L2: Tak
B3: Dla ponownego zamówienia | C3: Identyfikator magazynowy | D3: Nazwa | E3: Opis | F3: Cena jednostkowa | G3: Ilość w magazynie | H3: Wartość zapasów | I3: Poziom ponownego zamówienia | J3: Czas ponownego zamówienia w dniach | K3: Ilość do ponownego zamówienia | L3: Wycofane?
B4: =IFERROR((Tabela_Wykaz_zapasów[[#This Row],[Ilość w magazynie]]<=Tabela_Wykaz_zapasów[[#This Row],[Poziom ponownego zamówienia]])*(Tabela_Wykaz_zapasów[[#This Row],[Wycofane?]]="")*wart_wyróżnienia,0) -> 1 | C4: IN0001 | D4: Pozycja 1 | E4: Opis 1 | F4: 51.00 zł | G4: 25 | H4: =Tabela_Wykaz_zapasów[[#This Row],[Cena jednostkowa]]*Tabela_Wykaz_zapasów[[#This Row],[Ilość w magazynie]] -> 1,275.00 zł | I4: 29 | J4: 13 | K4: 50
B5: =IFERROR((Tabela_Wykaz_zapasów[[#This Row],[Ilość w magazynie]]<=Tabela_Wykaz_zapasów[[#This Row],[Poziom ponownego zamówienia]])*(Tabela_Wykaz_zapasów[[#This Row],[Wycofane?]]="")*wart_wyróżnienia,0) -> 1 | C5: IN0002 | D5: Pozycja 2 | E5: Opis 2 | F5: 93.00 zł | G5: 132 | H5: =Tabela_Wykaz_zapasów[[#This Row],[Cena jednostkowa]]*Tabela_Wykaz_zapasów[[#This Row],[Ilość w magazynie]] -> 12,276.00 zł | I5: 231 | J5: 4 | K5: 50
B6: =IFERROR((Tabela_Wykaz_zapasów[[#This Row],[Ilość w magazynie]]<=Tabela_Wykaz_zapasów[[#This Row],[Poziom ponownego zamówienia]])*(Tabela_Wykaz_zapasów[[#This Row],[Wycofane?]]="")*wart_wyróżnienia,0) -> 0 | C6: IN0003 | D6: Pozycja 3 | E6: Opis 3 | F6: 57.00 zł | G6: 151 | H6: =Tabela_Wykaz_zapasów[[#This Row],[Cena jednostkowa]]*Tabela_Wykaz_zapasów[[#This Row],[Ilość w magazynie]] -> 8,607.00 zł | I6: 114 | J6: 11 | K6: 150
B7: =IFERROR((Tabela_Wykaz_zapasów[[#This Row],[Ilość w magazynie]]<=Tabela_Wykaz_zapasów[[#This Row],[Poziom ponownego zamówienia]])*(Tabela_Wykaz_zapasów[[#This Row],[Wycofane?]]="")*wart_wyróżnienia,0) -> 0 | C7: IN0004 | D7: Pozycja 4 | E7: Opis 4 | F7: 19.00 zł | G7: 186 | H7: =Tabela_Wykaz_zapasów[[#This Row],[Cena jednostkowa]]*Tabela_Wykaz_zapasów[[#This Row],[Ilość w magazynie]] -> 3,534.00 zł | I7: 158 | J7: 6 | K7: 50
B8: =IFERROR((Tabela_Wykaz_zapasów[[#This Row],[Ilość w magazynie]]<=Tabela_Wykaz_zapasów[[#This Row],[Poziom ponownego zamówienia]])*(Tabela_Wykaz_zapasów[[#This Row],[Wycofane?]]="")*wart_wyróżnienia,0) -> 0 | C8: IN0005 | D8: Pozycja 5 | E8: Opis 5 | F8: 75.00 zł | G8: 62 | H8: =Tabela_Wykaz_zapasów[[#This Row],[Cena jednostkowa]]*Tabela_Wykaz_zapasów[[#This Row],[Ilość w magazynie]] -> 4,650.00 zł | I8: 39 | J8: 12 | K8: 50
B9: =IFERROR((Tabela_Wykaz_zapasów[[#This Row],[Ilość w magazynie]]<=Tabela_Wykaz_zapasów[[#This Row],[Poziom ponownego zamówienia]])*(Tabela_Wykaz_zapasów[[#This Row],[Wycofane?]]="")*wart_wyróżnienia,0) -> 1 | C9: IN0006 | D9: Pozycja 6 | E9: Opis 6 | F9: 11.00 zł | G9: 5 | H9: =Tabela_Wykaz_zapasów[[#This Row],[Cena jednostkowa]]*Tabela_Wykaz_zapasów[[#This Row],[Ilość w magazynie]] -> 55.00 zł | I9: 9 | J9: 13 | K9: 150
B10: =IFERROR((Tabela_Wykaz_zapasów[[#This Row],[Ilość w magazynie]]<=Tabela_Wykaz_zapasów[[#This Row],[Poziom ponownego zamówienia]])*(Tabela_Wykaz_zapasów[[#This Row],[Wycofane?]]="")*wart_wyróżnienia,0) -> 0 | C10: IN0007 | D10: Pozycja 7 | E10: Opis 7 | F10: 56.00 zł | G10: 58 | H10: =Tabela_Wykaz_zapasów[[#This Row],[Cena jednostkowa]]*Tabela_Wykaz_zapasów[[#This Row],[Ilość w magazynie]] -> 3,248.00 zł | I10: 109 | J10: 7 | K10: 100 | L10: Tak
B11: =IFERROR((Tabela_Wykaz_zapasów[[#This Row],[Ilość w magazynie]]<=Tabela_Wykaz_zapasów[[#This Row],[Poziom ponownego zamówienia]])*(Tabela_Wykaz_zapasów[[#This Row],[Wycofane?]]="")*wart_wyróżnienia,0) -> 1 | C11: IN0008 | D11: Pozycja 8 | E11: Opis 8 | F11: 38.00 zł | G11: 101 | H11: =Tabela_Wykaz_zapasów[[#This Row],[Cena jednostkowa]]*Tabela_Wykaz_zapasów[[#This Row],[Ilość w magazynie]] -> 3,838.00 zł | I11: 162 | J11: 3 | K11: 100
B12: =IFERROR((Tabela_Wykaz_zapasów[[#This Row],[Ilość w magazynie]]<=Tabela_Wykaz_zapasów[[#This Row],[Poziom ponownego zamówienia]])*(Tabela_Wykaz_zapasów[[#This Row],[Wycofane?]]="")*wart_wyróżnienia,0) -> 0 | C12: IN0009 | D12: Pozycja 9 | E12: Opis 9 | F12: 59.00 zł | G12: 122 | H12: =Tabela_Wykaz_zapasów[[#This Row],[Cena jednostkowa]]*Tabela_Wykaz_zapasów[[#This Row],[Ilość w magazynie]] -> 7,198.00 zł | I12: 82 | J12: 3 | K12: 150
B13: =IFERROR((Tabela_Wykaz_zapasów[[#This Row],[Ilość w magazynie]]<=Tabela_Wykaz_zapasów[[#This Row],[Poziom ponownego zamówienia]])*(Tabela_Wykaz_zapasów[[#This Row],[Wycofane?]]="")*wart_wyróżnienia,0) -> 1 | C13: IN0010 | D13: Pozycja 10 | E13: Opis 10 | F13: 50.00 zł | G13: 175 | H13: =Tabela_Wykaz_zapasów[[#This Row],[Cena jednostkowa]]*Tabela_Wykaz_zapasów[[#This Row],[Ilość w magazynie]] -> 8,750.00 zł | I13: 283 | J13: 8 | K13: 150
B14: =IFERROR((Tabela_Wykaz_zapasów[[#This Row],[Ilość w magazynie]]<=Tabela_Wykaz_zapasów[[#This Row],[Poziom ponownego zamówienia]])*(Tabela_Wykaz_zapasów[[#This Row],[Wycofane?]]="")*wart_wyróżnienia,0) -> 1 | C14: IN0011 | D14: Pozycja 11 | E14: Opis 11 | F14: 59.00 zł | G14: 176 | H14: =Tabela_Wykaz_zapasów[[#This Row],[Cena jednostkowa]]*Tabela_Wykaz_zapasów[[#This Row],[Ilość w magazynie]] -> 10,384.00 zł | I14: 229 | J14: 1 | K14: 100
B15: =IFERROR((Tabela_Wykaz_zapasów[[#This Row],[Ilość w magazynie]]<=Tabela_Wykaz_zapasów[[#This Row],[Poziom ponownego zamówienia]])*(Tabela_Wykaz_zapasów[[#This Row],[Wycofane?]]="")*wart_wyróżnienia,0) -> 1 | C15: IN0012 | D15: Pozycja 12 | E15: Opis 12 | F15: 18.00 zł | G15: 22 | H15: =Tabela_Wykaz_zapasów[[#This Row],[Cena jednostkowa]]*Tabela_Wykaz_zapasów[[#This Row],[Ilość w magazynie]] -> 396.00 zł | I15: 36 | J15: 12 | K15: 50
B16: =IFERROR((Tabela_Wykaz_zapasów[[#This Row],[Ilość w magazynie]]<=Tabela_Wykaz_zapasów[[#This Row],[Poziom ponownego zamówienia]])*(Tabela_Wykaz_zapasów[[#This Row],[Wycofane?]]="")*wart_wyróżnienia,0) -> 1 | C16: IN0013 | D16: Pozycja 13 | E16: Opis 13 | F16: 26.00 zł | G16: 72 | H16: =Tabela_Wykaz_zapasów[[#This Row],[Cena jednostkowa]]*Tabela_Wykaz_zapasów[[#This Row],[Ilość w magazynie]] -> 1,872.00 zł | I16: 102 | J16: 9 | K16: 100
B17: =IFERROR((Tabela_Wykaz_zapasów[[#This Row],[Ilość w magazynie]]<=Tabela_Wykaz_zapasów[[#This Row],[Poziom ponownego zamówienia]])*(Tabela_Wykaz_zapasów[[#This Row],[Wycofane?]]="")*wart_wyróżnienia,0) -> 1 | C17: IN0014 | D17: Pozycja 14 | E17: Opis 14 | F17: 42.00 zł | G17: 62 | H17: =Tabela_Wykaz_zapasów[[#This Row],[Cena jednostkowa]]*Tabela_Wykaz_zapasów[[#This Row],[Ilość w magazynie]] -> 2,604.00 zł | I17: 83 | J17: 2 | K17: 100
B18: =IFERROR((Tabela_Wykaz_zapasów[[#This Row],[Ilość w magazynie]]<=Tabela_Wykaz_zapasów[[#This Row],[Poziom ponownego zamówienia]])*(Tabela_Wykaz_zapasów[[#This Row],[Wycofane?]]="")*wart_wyróżnienia,0) -> 0 | C18: IN0015 | D18: Pozycja 15 | E18: Opis 15 | F18: 32.00 zł | G18: 46 | H18: =Tabela_Wykaz_zapasów[[#This Row],[Cena jednostkowa]]*Tabela_Wykaz_zapasów[[#This Row],[Ilość w magazynie]] -> 1,472.00 zł | I18: 23 | J18: 15 | K18: 50
B19: =IFERROR((Tabela_Wykaz_zapasów[[#This Row],[Ilość w magazynie]]<=Tabela_Wykaz_zapasów[[#This Row],[Poziom ponownego zamówienia]])*(Tabela_Wykaz_zapasów[[#This Row],[Wycofane?]]="")*wart_wyróżnienia,0) -> 1 | C19: IN0016 | D19: Pozycja 16 | E19: Opis 16 | F19: 90.00 zł | G19: 96 | H19: =Tabela_Wykaz_zapasów[[#This Row],[Cena jednostkowa]]*Tabela_Wykaz_zapasów[[#This Row],[Ilość w magazynie]] -> 8,640.00 zł | I19: 180 | J19: 3 | K19: 50
B20: =IFERROR((Tabela_Wykaz_zapasów[[#This Row],[Ilość w magazynie]]<=Tabela_Wykaz_zapasów[[#This Row],[Poziom ponownego zamówienia]])*(Tabela_Wykaz_zapasów[[#This Row],[Wycofane?]]="")*wart_wyróżnienia,0) -> 0 | C20: IN0017 | D20: Pozycja 17 | E20: Opis 17 | F20: 97.00 zł | G20: 57 | H20: =Tabela_Wykaz_zapasów[[#This Row],[Cena jednostkowa]]*Tabela_Wykaz_zapasów[[#This Row],[Ilość w magazynie]] -> 5,529.00 zł | I20: 98 | J20: 12 | K20: 50 | L20: Tak
B21: =IFERROR((Tabela_Wykaz_zapasów[[#This Row],[Ilość w magazynie]]<=Tabela_Wykaz_zapasów[[#This Row],[Poziom ponownego zamówienia]])*(Tabela_Wykaz_zapasów[[#This Row],[Wycofane?]]="")*wart_wyróżnienia,0) -> 1 | C21: IN0018 | D21: Pozycja 18 | E21: Opis 18 | F21: 12.00 zł | G21: 6 | H21: =Tabela_Wykaz_zapasów[[#This Row],[Cena jednostkowa]]*Tabela_Wykaz_zapasów[[#This Row],[Ilość w magazynie]] -> 72.00 zł | I21: 7 | J21: 13 | K21: 50
B22: =IFERROR((Tabela_Wykaz_zapasów[[#This Row],[Ilość w magazynie]]<=Tabela_Wykaz_zapasów[[#This Row],[Poziom ponownego zamówienia]])*(Tabela_Wykaz_zapasów[[#This Row],[Wycofane?]]="")*wart_wyróżnienia,0) -> 1 | C22: IN0019 | D22: Pozycja 19 | E22: Opis 19 | F22: 82.00 zł | G22: 143 | H22: =Tabela_Wykaz_zapasów[[#This Row],[Cena jednostkowa]]*Tabela_Wykaz_zapasów[[#This Row],[Ilość w magazynie]] -> 11,726.00 zł | I22: 164 | J22: 12 | K22: 150
B23: =IFERROR((Tabela_Wykaz_zapasów[[#This Row],[Ilość w magazynie]]<=Tabela_Wykaz_zapasów[[#This Row],[Poziom ponownego zamówienia]])*(Tabela_Wykaz_zapasów[[#This Row],[Wycofane?]]="")*wart_wyróżnienia,0) -> 0 | C23: IN0020 | D23: Pozycja 20 | E23: Opis 20 | F23: 16.00 zł | G23: 124 | H23: =Tabela_Wykaz_zapasów[[#This Row],[Cena jednostkowa]]*Tabela_Wykaz_zapasów[[#This Row],[Ilość w magazynie]] -> 1,984.00 zł | I23: 113 | J23: 14 | K23: 50
B24: =IFERROR((Tabela_Wykaz_zapasów[[#This Row],[Ilość w magazynie]]<=Tabela_Wykaz_zapasów[[#This Row],[Poziom ponownego zamówienia]])*(Tabela_Wykaz_zapasów[[#This Row],[Wycofane?]]="")*wart_wyróżnienia,0) -> 0 | C24: IN0021 | D24: Pozycja 21 | E24: Opis 21 | F24: 19.00 zł | G24: 112 | H24: =Tabela_Wykaz_zapasów[[#This Row],[Cena jednostkowa]]*Tabela_Wykaz_zapasów[[#This Row],[Ilość w magazynie]] -> 2,128.00 zł | I24: 75 | J24: 11 | K24: 50
B25: =IFERROR((Tabela_Wykaz_zapasów[[#This Row],[Ilość w magazynie]]<=Tabela_Wykaz_zapasów[[#This Row],[Poziom ponownego zamówienia]])*(Tabela_Wykaz_zapasów[[#This Row],[Wycofane?]]="")*wart_wyróżnienia,0) -> 0 | C25: IN0022 | D25: Pozycja 22 | E25: Opis 22 | F25: 24.00 zł | G25: 182 | H25: =Tabela_Wykaz_zapasów[[#This Row],[Cena jednostkowa]]*Tabela_Wykaz_zapasów[[#This Row],[Ilość w magazynie]] -> 4,368.00 zł | I25: 132 | J25: 15 | K25: 150
B26: =IFERROR((Tabela_Wykaz_zapasów[[#This Row],[Ilość w magazynie]]<=Tabela_Wykaz_zapasów[[#This Row],[Poziom ponownego zamówienia]])*(Tabela_Wykaz_zapasów[[#This Row],[Wycofane?]]="")*wart_wyróżnienia,0) -> 0 | C26: IN0023 | D26: Pozycja 23 | E26: Opis 23 | F26: 29.00 zł | G26: 106 | H26: =Tabela_Wykaz_zapasów[[#This Row],[Cena jednostkowa]]*Tabela_Wykaz_zapasów[[#This Row],[Ilość w magazynie]] -> 3,074.00 zł | I26: 142 | J26: 1 | K26: 150 | L26: Tak
B27: =IFERROR((Tabela_Wykaz_zapasów[[#This Row],[Ilość w magazynie]]<=Tabela_Wykaz_zapasów[[#This Row],[Poziom ponownego zamówienia]])*(Tabela_Wykaz_zapasów[[#This Row],[Wycofane?]]="")*wart_wyróżnienia,0) -> 0 | C27: IN0024 | D27: Pozycja 24 | E27: Opis 24 | F27: 75.00 zł | G27: 173 | H27: =Tabela_Wykaz_zapasów[[#This Row],[Cena jednostkowa]]*Tabela_Wykaz_zapasów[[#This Row],[Ilość w magazynie]] -> 12,975.00 zł | I27: 127 | J27: 9 | K27: 100
B28: =IFERROR((Tabela_Wykaz_zapasów[[#This Row],[Ilość w magazynie]]<=Tabela_Wykaz_zapasów[[#This Row],[Poziom ponownego zamówienia]])*(Tabela_Wykaz_zapasów[[#This Row],[Wycofane?]]="")*wart_wyróżnienia,0) -> 0 | C28: IN0025 | D28: Pozycja 25 | E28: Opis 25 | F28: 14.00 zł | G28: 28 | H28: =Tabela_Wykaz_zapasów[[#This Row],[Cena jednostkowa]]*Tabela_Wykaz_zapasów[[#This Row],[Ilość w magazynie]] -> 392.00 zł | I28: 21 | J28: 8 | K28: 50
